bitfinex-derivatives/quotes_SOLF0:USTF0_20240911
["timestamp","ask_amount","ask_price","bid_price","bid_amount"]
[1726062564840,3.78072988,131.11,130.94,47.71]
[1726062565143,47.71,131.02,130.91,51.8256]
[1726062565335,51.61823931,131.02,130.91,51.8256]
[1726062565535,3.8171,131.0,130.95,3.8182]
[1726062565841,51.61823931,131.02,130.91,55.68764443]
[1726062566139,47.71,131.0,130.91,4.1156]
[1726062566844,47.71,130.98,130.87,47.71]
[1726062567045,47.71,131.0,130.81,176.14041903]
[1726062567046,3.8189,130.94,130.85,50.3507]
[1726062567339,47.71,130.96,130.85,50.3507]
[1726062567541,47.71,130.98,130.87,47.71]
[1726062567847,47.71,131.0,130.89,47.71]
[1726062568741,51.61823931,131.02,130.91,47.71]
[1726062568948,47.71,131.02,130.92,1.2929]
[1726062569246,47.71,131.02,130.92,5.112]
[1726062569442,47.71,131.0,130.92,3.8191]
[1726062569647,47.71,131.0,130.89,47.71]
[1726062569955,3.818,130.97,130.89,47.71]
[1726062570357,47.71,131.0,130.89,47.71]
[1726062570557,47.71,131.0,130.87,47.71]
[1726062570757,47.71,130.98,130.87,47.71]
[1726062571257,47.71,131.0,130.89,47.71]
[1726062571649,3.8175,130.98,130.89,47.71]
[1726062571858,47.71,131.0,130.89,47.71]
[1726062572155,3.8176,130.98,130.93,3.8188]
[1726062572550,3.74560733,130.99,130.89,29.35]
[1726062572755,3.818,130.97,130.89,29.35]
[1726062572960,3.74560733,130.99,130.89,29.35]
[1726062573150,29.35,131.0,130.89,29.35]
[1726062573754,3.8183,130.96,130.86,30.6429]
[1726062573948,29.35,130.98,130.86,30.6429]
[1726062574152,3.8207,130.88,130.86,1.2929]
[1726062574349,3.8207,130.88,130.85,2.6407]
[1726062574350,29.35,130.92,130.82,2.6704]
[1726062574546,33.14946524,130.92,130.82,2.6704]
[1726062574753,29.35,130.94,130.87,3.8205]
[1726062574951,3.78304048,130.92,130.87,3.8205]
[1726062575156,3.78304048,130.92,130.88,3.8204]
[1726062575351,3.78304048,130.92,130.85,29.35]
[1726062575560,29.35,130.96,130.85,29.35]
[1726062575752,29.35,130.96,130.83,29.35]
[1726062576255,29.35,130.96,130.85,29.35]
[1726062577247,227.88235294,131.0,130.85,29.35]
[1726062577447,29.35,130.98,130.85,29.35]
[1726062577853,3.8184,130.95,130.85,29.35]
[1726062578050,29.35,130.98,130.85,29.35]
[1726062578051,33.19715322,130.98,130.85,29.35]
[1726062578459,3.8181,130.96,130.87,29.35]
[1726062578653,33.19715322,130.98,130.85,29.35]
[1726062579051,3.8185,130.95,130.9,3.8198]
[1726062579957,33.19715322,130.98,130.87,29.35]
[1726062580164,29.35,131.0,130.87,29.35]
[1726062580455,3.8197,130.91,130.86,3.8208]
[1726062580760,29.35,130.96,130.83,29.35]
[1726062581154,3.8188,130.94,130.89,3.8201]
[1726062581357,29.35,130.96,130.83,29.35]
[1726062581549,3.8195,130.92,130.87,3.8206]
[1726062582756,3.819,130.93,130.83,29.35]
[1726062582971,29.35,130.96,130.83,29.35]
[1726062583173,3.8197,130.91,130.86,3.8208]
[1726062583359,29.35,130.96,130.83,29.35]
[1726062583557,3.81132508,131.0,130.87,29.35]
[1726062583757,29.35,131.0,130.9,29.35]
[1726062583959,29.35,131.0,130.87,29.35]
[1726062584164,29.35,130.98,130.89,1.4072]
[1726062584863,3.8179,130.97,130.92,3.819]
[1726062585057,3.8179,130.97,130.9,2.7634]
[1726062585459,3.8179,130.97,130.93,3.8188]
[1726062585663,562.0,131.05,130.92,29.35]
[1726062585860,29.35,131.04,130.92,29.35]
[1726062586555,3.84597753,131.03,130.92,29.35]
[1726062586759,3.8171,131.0,130.92,29.35]
[1726062586960,3.84597753,131.03,130.92,29.35]
[1726062587161,3.817,131.0,130.92,29.35]
[1726062587456,3.84597753,131.03,130.92,29.35]
[1726062587858,3.8168,131.01,130.92,29.35]
[1726062588255,3.8168,131.01,130.96,3.8179]
[1726062588459,29.35,131.04,130.92,29.35]
[1726062588862,29.35,131.04,130.97,3.8176]
[1726062589166,29.35,131.04,130.92,29.35]
[1726062589367,29.35,131.04,130.96,3.8178]
[1726062589562,29.35,131.04,130.92,29.35]
[1726062589764,29.35,131.02,130.9,2.7634]
[1726062589959,33.18678301,131.02,130.93,3.8189]
[1726062590160,29.35,130.99,130.9,2.7634]
[1726062590362,29.35,130.97,130.9,2.7634]
[1726062590556,3.8184,130.95,130.9,5.2091]
[1726062591067,3.8184,130.95,130.9,1.3893]
[1726062591464,3.8187,130.94,130.9,1.3893]
[1726062591857,29.35,130.97,130.9,1.3893]
[1726062592061,3.8189,130.94,130.9,1.3893]
[1726062592263,29.35,130.95,130.89,5.2271]
[1726062592461,3.8188,130.94,130.89,5.2271]
[1726062593163,3.819,130.93,130.89,5.2271]
[1726062593666,3.8189,130.94,130.89,5.2271]
[1726062593869,29.35,130.97,130.89,1.4072]
[1726062594073,33.10887879,130.99,130.89,1.4072]
[1726062594269,29.35,130.97,130.89,1.4072]
[1726062595173,29.35,130.95,130.89,1.4072]
[1726062595778,3.8193,130.92,130.89,1.4072]
[1726062596074,33.10887879,130.99,130.87,5.1249]
[1726062596075,29.35,130.93,130.87,5.1249]
[1726062596562,3.8197,130.91,130.87,5.1249]
[1726062596768,29.35,130.93,130.86,5.1891]
[1726062596969,3.73079254,130.92,130.83,1.3793]
[1726062597270,29.35,130.93,130.83,1.3793]
[1726062597580,3.8203,130.89,130.85,3.8212]
[1726062597872,29.35,130.88,130.83,1.3793]
[1726062598171,33.1705,130.88,130.83,5.2011]
[1726062598380,33.1705,130.88,130.83,1.3793]
[1726062598381,29.35,130.88,130.83,1.3793]
[1726062598874,29.35,130.9,130.83,1.3793]
[1726062599365,33.18648039,130.9,130.83,1.3793]
[1726062599776,33.18648039,130.9,130.83,5.2011]
[1726062599970,33.18648039,130.9,130.82,2.6875]
[1726062600172,29.35,130.88,130.8,1.411]
[1726062600373,29.35,130.86,130.74,1.3062]
[1726062600576,29.35,130.86,130.74,4.0997]
[1726062600772,29.35,130.86,130.8,3.8227]
[1726062600972,29.35,130.87,130.74,4.0997]
[1726062601185,33.18648039,130.9,130.79,29.35]
[1726062601475,33.18648039,130.9,130.8,3.77417628]
[1726062601874,33.18648039,130.9,130.81,4.1086]
[1726062602281,29.35,130.9,130.81,4.1086]
[1726062602475,29.35,130.94,130.81,33.4586]
[1726062602672,29.35,130.94,130.85,3.821]
[1726062602868,29.35,130.91,130.81,4.1086]
[1726062603081,29.35,130.86,130.81,2.7261]
[1726062603672,33.1702,130.89,130.81,2.7261]
[1726062603974,29.35,130.91,130.81,2.7261]
[1726062604166,3.8204,130.89,130.82,1.3589]
[1726062604373,3.90138398,130.9,130.82,1.3589]
[1726062604773,3.8205,130.88,130.84,3.8214]
[1726062604980,3.90138398,130.9,130.82,1.3589]
[1726062605169,29.35,130.86,130.76,29.35]
[1726062605676,29.35,130.9,130.79,29.35]
[1726062605868,3.8203,130.89,130.84,3.8214]
[1726062606272,3.81010626,130.89,130.77,29.35]
[1726062606467,3.8215,130.85,130.8,3.8227]
[1726062606678,29.35,130.94,130.74,4.023]
[1726062606679,29.35,130.87,130.74,4.023]
[1726062606883,29.35,130.83,130.74,4.023]
[1726062607583,3.8224,130.82,130.74,4.023]
[1726062607970,29.35,130.83,130.74,4.023]
[1726062608679,3.8224,130.82,130.78,3.8233]
[1726062608870,29.35,130.83,130.73,3.73939301]
[1726062609076,29.35,130.8,130.71,2.7937]
[1726062609576,29.35,130.76,130.57,11.4879]
[1726062609774,29.35,130.71,130.59,29.35]
[1726062610073,29.35,130.71,130.59,33.1]
[1726062610473,29.35,130.71,130.59,3.75]
[1726062610669,29.35,130.71,130.59,29.35]
[1726062610880,29.35,130.71,130.61,29.35]
[1726062611077,29.35,130.71,130.62,1.2965]
[1726062611275,3.91595289,130.73,130.62,30.6465]
[1726062611486,3.91595289,130.73,130.65,29.35]
[1726062611781,33.25228037,130.77,130.66,2.6205]
[1726062612185,29.35,130.77,130.66,6.50518013]
[1726062612371,3.80777471,130.78,130.74,3.8244]
[1726062612571,29.35,130.76,130.69,1.2965]
[1726062613274,29.35,130.76,130.66,2.6205]
[1726062613477,3.8262,130.69,130.61,29.35]
[1726062613685,29.35,130.72,130.62,1.3452]
[1726062613877,3.8257,130.7,130.64,3.8272]
[1726062614081,3.83608815,130.7,130.64,3.8272]
[1726062614280,3.83608815,130.7,130.62,1.3452]
[1726062614281,47.76,130.7,130.62,1.3452]
[1726062614481,47.76,130.74,130.62,1.3452]
[1726062614684,47.76,130.74,130.63,47.76]
[1726062615190,47.76,130.74,130.62,1.3452]
[1726062615480,3.8254,130.71,130.66,3.8267]
[1726062615788,47.76,130.74,130.62,1.3452]
[1726062615989,3.8258,130.7,130.65,3.8269]
[1726062616280,47.76,130.67,130.54,47.76]
[1726062616479,47.76,130.67,130.61,3.8281]
[1726062616679,47.76,130.67,130.56,47.76]
[1726062616882,338.0,130.73,130.54,54.39689123]
[1726062616883,47.76,130.62,130.54,2.8336]
[1726062617176,47.76,130.74,130.49,47.76]
[1726062617177,47.76,130.61,130.49,47.76]
[1726062617383,47.76,130.61,130.47,8.05848251]
[1726062617577,3.87102946,130.62,130.49,47.76]
[1726062617780,47.76,130.62,130.49,47.76]
[1726062617983,3.74473784,130.64,130.48,1.4305]
[1726062618277,47.76,130.64,130.53,47.76]
[1726062618478,47.76,130.64,130.49,1.40754821]
[1726062618479,11.39839188,130.76,130.55,47.76]
[1726062618783,47.76,130.68,130.56,1.3926]
[1726062618980,47.76,130.66,130.56,1.3926]
[1726062619281,47.76,130.64,130.55,1.3785]
[1726062632502,47.76,130.67,130.56,50.4786]
[1726062633000,47.76,130.7,130.59,47.76]
[1726062633303,47.76,130.72,130.59,47.76]
[1726062633495,47.76,130.69,130.59,47.76]
[1726062633701,47.76,130.66,130.56,2.7186]
[1726062634401,29.41,130.65,130.56,2.7186]
[1726062635297,3.8283,130.62,130.56,6.5483]
[1726062635498,3.8283,130.62,130.56,2.7186]
[1726062636103,29.41,130.65,130.36,3.17576372]
[1726062636104,29.41,130.57,130.36,3.17576372]
[1726062636298,29.41,130.59,130.36,3.17576372]
[1726062636299,29.41,130.51,130.41,2.6733]
[1726062636495,29.41,130.55,130.44,29.41]
[1726062636700,29.41,130.56,130.44,29.41]
[1726062636900,3.80015313,130.62,130.41,2.6733]
[1726062636901,3.80015313,130.62,130.46,29.41]
[1726062637107,8.00469241,130.65,130.45,1.3142]
[1726062637108,29.41,130.6,130.45,1.3142]
[1726062637406,29.41,130.65,130.52,29.41]
[1726062637605,29.41,130.65,130.46,29.41]
[1726062637606,29.41,130.67,130.55,29.41]
[1726062637795,33.2644856,130.69,130.53,4.0951]
[1726062637992,33.2644856,130.69,130.58,29.41]
[1726062637993,29.41,130.69,130.58,29.41]
[1726062638197,47.77,130.7,130.59,47.77]
[1726062638402,3.8261,130.69,130.62,3.828]
[1726062638607,3.81960934,130.73,130.61,47.77]
[1726062638608,47.77,130.73,130.61,47.77]
[1726062638902,47.77,130.8,130.58,3.8289]
[1726062638903,3.8272,130.65,130.58,3.8289]
[1726062639101,51.65088854,130.69,130.57,47.77]
[1726062639310,47.77,130.69,130.53,4.0951]
[1726062639498,47.77,130.69,130.56,47.77]
[1726062639700,47.77,130.67,130.53,51.8651]
[1726062640195,3.8281,130.62,130.53,51.8651]
[1726062640402,51.5981,130.62,130.53,4.0951]
[1726062640607,47.77,130.65,130.53,51.8651]
[1726062640909,47.77,130.67,130.55,47.77]
[1726062641312,47.77,130.65,130.56,3.8296]
[1726062641605,3.81701899,130.64,130.53,51.8651]
[1726062642006,47.77,130.65,130.53,51.8651]
[1726062642196,47.77,130.67,130.53,51.8651]
[1726062642399,51.542212,130.69,130.6,3.8286]
[1726062642599,47.77,130.69,130.6,3.8286]
[1726062643003,47.77,130.69,130.58,47.77]
[1726062643201,47.77,130.67,130.53,4.0951]
[1726062643397,47.77,130.65,130.54,47.77]
[1726062643597,51.5974,130.65,130.54,47.77]
[1726062643900,47.77,130.65,130.54,47.77]
[1726062644098,47.77,130.65,130.56,3.8296]
[1726062644301,47.77,130.62,130.53,2.7809]
[1726062644502,47.77,130.62,130.5,47.77]
[1726062644903,47.77,130.64,130.5,47.77]
[1726062645107,47.77,130.64,130.53,47.77]
[1726062645306,51.53177709,130.64,130.5,47.77]
[1726062645504,47.77,130.61,130.5,47.77]
[1726062646005,47.77,130.57,130.47,4.0642]
[1726062646210,3.8304,130.54,130.44,47.77]
[1726062646411,47.77,130.55,130.44,47.77]
[1726062647213,47.77,130.55,130.42,1.2926]
[1726062647214,47.77,130.52,130.42,1.2926]
[1726062647714,47.77,130.55,130.33,47.77]
[1726062648017,47.77,130.48,130.37,47.77]
[1726062648315,47.77,130.39,130.38,1.40863473]
[1726062648509,47.77,130.47,130.24,1.4224]
[1726062648711,47.77,130.37,130.25,47.77]
[1726062648913,224.0,130.53,130.29,47.77]
[1726062649221,47.77,130.41,130.3,1.33]
[1726062649420,47.77,130.44,130.31,47.77]
[1726062649614,47.77,130.44,130.32,1.4224]
[1726062650011,47.77,130.44,130.32,49.1924]
[1726062650225,3.74118368,130.44,130.32,1.4224]
[1726062650417,47.77,130.47,130.34,3.8362]
[1726062650418,47.77,130.41,130.34,3.8362]
[1726062650615,47.77,130.43,130.33,47.77]
[1726062651018,47.77,130.41,130.3,1.33]
[1726062651218,47.77,130.39,130.3,1.33]
[1726062651514,47.77,130.42,130.3,1.33]
[1726062651917,51.63689681,130.47,130.34,47.77]
[1726062652117,47.77,130.47,130.34,47.77]
[1726062652314,47.77,130.44,130.32,47.77]
[1726062652521,47.77,130.44,130.35,3.8358]
[1726062652826,47.77,130.47,130.32,47.77]
[1726062653028,47.77,130.45,130.34,47.77]
[1726062653324,224.0,130.53,130.35,47.77]
[1726062653527,47.77,130.5,130.37,47.77]
[1726062653727,47.77,130.5,130.38,1.2895]
[1726062654226,51.5180834,130.6,130.41,47.77]
[1726062654422,47.77,130.55,130.41,47.77]
[1726062654730,47.77,130.48,130.39,2.7865]
[1726062655626,3.85399892,130.53,130.39,1.37]
[1726062655627,47.77,130.46,130.39,1.37]
[1726062655928,47.77,130.41,130.29,47.77]
[1726062656120,47.77,130.43,130.32,47.77]
[1726062656325,47.77,130.46,130.33,1.3102]
[1726062656525,47.77,130.42,130.33,1.3102]
[1726062657319,47.77,130.4,130.33,5.1467]
[1726062657525,47.77,130.38,130.29,1.3102]
[1726062657725,47.77,130.4,130.29,1.3102]
[1726062657929,47.77,130.37,130.29,1.3102]
[1726062658225,47.77,130.4,130.29,1.3102]
[1726062658529,47.77,130.47,130.29,1.3102]
[1726062658530,47.77,130.47,130.34,47.77]
[1726062658737,47.77,130.47,130.36,47.77]
[1726062658927,47.77,130.53,130.49,3.8318]
[1726062659125,47.77,130.53,130.41,47.77]
[1726062659722,7.646,130.64,130.44,47.77]
[1726062659928,47.77,130.59,130.46,47.77]
[1726062660124,47.77,130.59,130.47,1.3032]
[1726062660925,47.77,130.6,130.47,1.3032]
[1726062661134,47.77,130.52,130.45,2.8036]
[1726062661432,47.77,130.6,130.45,2.8036]
[1726062661433,47.77,130.54,130.45,2.8036]
[1726062661738,224.0,130.68,130.45,50.5736]
[1726062662031,47.77,130.6,130.47,47.77]
[1726062662329,47.77,130.6,130.46,2.77197657]
[1726062662330,47.77,130.6,130.48,47.77]
[1726062662529,47.77,130.6,130.46,49.1339]
[1726062663530,47.77,130.6,130.49,47.77]
[1726062663731,3.829,130.59,130.49,47.77]
[1726062663927,47.77,130.58,130.46,49.1339]
[1726062664123,47.77,130.6,130.46,49.1339]
[1726062664839,47.77,130.6,130.49,3.8316]
[1726062665030,47.77,130.57,130.46,49.1339]
[1726062665235,47.77,130.59,130.46,49.1339]
[1726062665438,47.77,130.57,130.46,49.1339]
[1726062665636,47.77,130.59,130.46,49.1339]
[1726062665838,47.77,130.56,130.46,1.3639]
[1726062666233,47.77,130.54,130.45,2.8036]
[1726062666533,3.8309,130.53,130.45,2.8036]
[1726062666745,47.77,130.54,130.45,2.8036]
[1726062667229,47.77,130.59,130.45,50.5736]
[1726062667432,3.8297,130.57,130.51,3.831]
[1726062667731,47.77,130.54,130.45,2.8036]
[1726062668031,47.77,130.51,130.39,49.1455]
[1726062668234,47.77,130.51,130.4,2.6755]
[1726062668435,47.77,130.51,130.41,47.77]
[1726062668932,47.77,130.47,130.37,47.77]
[1726062669135,47.77,130.47,130.33,3.88471562]
[1726062669136,47.77,130.47,130.35,47.77]
[1726062669329,47.77,130.49,130.39,47.77]
[1726062669637,47.77,130.51,130.39,47.77]
[1726062670342,47.77,130.53,130.41,47.77]
[1726062670544,47.77,130.53,130.43,47.77]
[1726062670730,47.77,130.53,130.42,2.6755]
[1726062670933,69.77,130.46,130.15,7.6832]
[1726062671235,47.77,130.54,130.09,49.9676]
[1726062671236,47.77,130.5,130.38,47.77]
[1726062671427,47.77,130.5,130.39,1.2956]
[1726062671631,3.8333,130.45,130.39,6.4457]
[1726062671839,47.77,130.48,130.39,6.4457]
[1726062672034,47.77,130.54,130.34,1.3168]
[1726062672035,47.77,130.46,130.34,49.0868]
[1726062672237,47.77,130.42,130.32,1.3155]
[1726062672433,47.77,130.4,130.32,1.3155]
[1726062673034,47.77,130.42,130.32,49.0855]
[1726062673239,47.77,130.45,130.32,49.0855]
[1726062674035,47.77,130.33,130.1,3.18154952]
[1726062674247,47.77,130.34,130.21,2.8242]
[1726062674248,47.77,130.28,130.21,2.8242]
[1726062674832,47.77,130.26,130.14,47.77]
[1726062675042,47.77,130.26,130.12,2.8242]
[1726062675243,47.77,130.28,130.16,47.77]
[1726062675547,47.77,130.28,130.17,47.77]
[1726062675839,47.77,130.34,130.17,47.77]
[1726062675840,47.77,130.3,130.17,47.77]
[1726062676044,3.87793463,130.36,130.22,47.77]
[1726062676235,47.77,130.35,130.23,4.1706]
[1726062676543,47.77,130.3,130.23,4.1706]
[1726062677035,47.77,130.28,130.23,2.8242]
[1726062677232,47.77,130.28,130.17,1.3283]
[1726062677432,47.77,130.28,130.17,3.9437]
[1726062677644,3.8388,130.26,130.17,3.9437]
[1726062677842,47.77,130.28,130.17,3.9437]
[1726062678041,47.77,130.28,130.2,3.8402]
[1726062678340,47.77,130.22,130.17,2.6154]
[1726062678844,47.77,130.27,130.17,2.6154]
[1726062679045,47.77,130.29,130.17,54.1685094]
[1726062679242,47.77,130.31,130.17,2.6154]
[1726062679448,47.77,130.31,130.19,47.77]
[1726062679842,47.77,130.31,130.21,47.77]
[1726062680042,47.77,130.34,130.23,47.77]
[1726062680244,47.77,130.36,130.23,47.77]
[1726062680541,47.77,130.36,130.25,47.77]
[1726062680739,47.77,130.4,130.27,47.77]
[1726062680940,47.77,130.54,130.27,47.77]
[1726062680941,47.77,130.44,130.32,47.77]
[1726062681150,47.77,130.46,130.34,47.77]
[1726062681443,47.77,130.46,130.33,1.3274]
[1726062681444,47.77,130.41,130.35,2.7426]
[1726062681648,47.77,130.41,130.25,47.77]
[1726062681846,47.77,130.37,130.27,4.07]
[1726062682644,47.77,130.35,130.29,3.8377]
[1726062682953,47.77,130.35,130.27,4.07]
[1726062683354,47.77,130.35,130.29,3.8375]
[1726062683539,47.77,130.41,130.27,4.07]
[1726062683540,47.77,130.32,130.27,4.07]
[1726062683741,47.77,130.32,130.3,3.8374]
[1726062684055,47.77,130.35,130.27,4.07]
[1726062684250,47.77,130.37,130.27,4.07]
[1726062684447,47.77,130.31,130.27,4.07]
[1726062684651,47.77,130.41,130.21,1.2914]
[1726062684652,47.77,130.29,130.21,1.2914]
[1726062684850,47.77,130.29,130.21,2.6525]
[1726062685049,47.77,130.27,130.21,1.3611]
[1726062685444,47.77,130.27,130.18,1.3697]
[1726062685647,3.839,130.25,130.19,3.8404]
[1726062685849,47.77,130.27,130.18,1.3697]
[1726062686157,47.77,130.29,130.18,1.3697]
[1726062686344,47.77,130.27,130.17,2.7217]
[1726062686650,51.6078,130.29,130.17,2.7217]
[1726062686859,47.77,130.29,130.17,50.4917]
[1726062687056,47.77,130.31,130.2,47.77]
[1726062687253,51.6074,130.31,130.24,3.8389]
[1726062687451,47.77,130.3,130.21,1.2949]
[1726062687654,47.77,130.28,130.22,3.8396]
[1726062687845,51.56732739,130.34,130.07,173.23423727]
[1726062688049,51.56732739,130.34,130.11,47.77]
[1726062688050,47.77,130.23,130.11,47.77]
[1726062688252,3.8398,130.22,130.12,1.41192994]
[1726062688450,47.77,130.23,130.11,47.77]
[1726062688649,47.77,130.25,130.13,47.77]
[1726062688847,47.77,130.27,130.16,47.77]
[1726062689055,47.77,130.29,130.18,47.77]
[1726062689260,47.77,130.34,130.15,1.3793]
[1726062689261,3.8397,130.23,130.15,1.3793]
[1726062689446,47.77,130.24,130.15,1.3793]
[1726062689849,47.77,130.22,130.15,1.3793]
[1726062690062,47.77,130.25,130.15,1.3793]
[1726062690248,47.77,130.22,130.12,47.77]
[1726062690453,47.77,130.22,130.17,3.8413]
[1726062690648,47.77,130.22,130.12,47.77]
[1726062690962,3.839,130.25,130.14,47.77]
[1726062691155,47.77,130.26,130.14,47.77]
[1726062691355,47.77,130.23,130.11,47.77]
[1726062692062,3.8398,130.22,130.17,3.8412]
[1726062692262,47.77,130.23,130.11,47.77]
[1726062692455,47.77,130.25,130.1,1.3793]
[1726062692650,47.77,130.22,130.11,49.18189733]
[1726062692857,47.77,130.22,130.1,1.3793]
[1726062693063,47.77,130.22,130.18,3.8409]
[1726062693357,47.77,130.22,130.11,47.77]
[1726062693555,51.6099,130.22,130.1,1.3793]
[1726062693964,47.77,130.2,130.1,1.3793]
[1726062694261,47.77,130.22,130.1,1.3793]
[1726062694649,47.77,130.24,130.19,3.8406]
[1726062694864,47.77,130.24,130.13,47.77]
[1726062695062,47.77,130.24,130.11,47.77]
[1726062695363,47.77,130.15,129.96,7.6949]
[1726062695562,224.0,130.31,130.02,50.3692]
[1726062695758,47.77,130.15,130.02,50.3692]
[1726062695953,47.77,130.19,130.08,47.77]
[1726062696260,47.77,130.17,130.05,47.77]
[1726062696656,47.77,130.17,130.06,1.41246357]
[1726062696861,47.77,130.17,130.04,1.3124]
[1726062696862,47.77,130.22,130.09,47.77]
[1726062697159,47.77,130.24,130.12,47.77]
[1726062697474,47.77,130.24,130.13,1.3124]
[1726062698354,47.77,130.26,130.14,47.77]
[1726062698652,47.77,130.28,130.16,47.77]
[1726062698859,47.77,130.26,130.14,47.77]
[1726062699660,47.77,130.28,130.17,47.77]
[1726062699856,47.77,130.28,130.26,3.8386]
[1726062700058,47.77,130.33,130.21,47.77]
[1726062700358,47.77,130.25,130.13,1.3124]
[1726062700670,47.77,130.23,130.13,49.0824]
[1726062700857,47.77,130.26,130.13,49.0824]
[1726062701059,47.77,130.28,130.14,1.4115863]
[1726062701254,47.77,130.28,130.17,47.77]
[1726062701550,47.77,130.3,130.17,47.77]
[1726062701758,47.77,130.3,130.19,47.77]
[1726062701964,47.77,130.28,130.17,47.77]
[1726062702150,55.78994231,130.41,130.2,47.77]
[1726062702352,55.78994231,130.41,130.17,3.81605222]
[1726062702353,47.77,130.33,130.22,47.77]
[1726062702555,47.77,130.31,130.21,2.6725]
[1726062703061,47.77,130.33,130.21,1.314]
[1726062703264,47.77,130.27,130.15,49.1285]
[1726062703458,3.8387,130.26,130.15,49.1285]
[1726062703654,47.77,130.25,130.15,1.3585]
[1726062703961,3.8392,130.24,130.15,49.1285]
[1726062704165,47.77,130.28,130.15,49.1285]
[1726062704667,47.77,130.28,130.15,1.3585]
[1726062704869,47.77,130.23,130.14,1.314]
[1726062705058,3.8402,130.21,130.14,1.314]
[1726062705254,47.77,130.23,130.14,1.314]
[1726062705660,47.77,130.23,130.18,3.8407]
[1726062705965,51.57663492,130.33,130.15,47.77]
[1726062705966,47.77,130.25,130.15,47.77]
[1726062706654,3.8388,130.26,130.21,3.8399]
[1726062706860,47.77,130.27,130.21,3.8399]
[1726062707055,47.77,130.25,130.18,3.8409]
[1726062707264,47.77,130.23,130.14,1.314]
[1726062707768,3.8399,130.22,130.14,1.314]
[1726062708065,47.77,130.23,130.14,1.314]
[1726062708262,3.8402,130.21,130.16,3.8413]
[1726062708666,47.77,130.21,130.11,1.4314]
[1726062708859,3.8412,130.18,130.11,1.4314]
[1726062709056,47.77,130.19,130.09,1.2969]
[1726062709261,47.77,130.19,130.08,1.3364]
[1726062709470,47.77,130.21,130.08,1.3364]
[1726062709471,47.77,130.16,130.08,1.3364]
[1726062709963,47.77,130.16,130.05,47.77]
[1726062710374,3.8426,130.13,130.05,47.77]
[1726062710670,3.8426,130.13,130.04,1.3364]
[1726062710875,47.77,130.14,130.04,1.3364]
[1726062711164,47.77,130.12,130.01,47.77]
[1726062711571,3.8438,130.09,130.05,3.8446]
[1726062712069,47.77,130.12,130.07,3.8442]
[1726062712070,3.8433,130.11,130.07,3.8442]